Cogmind - Beta 14 @@@ ROGUE MODE // 2024.09.13 @ 16:54:51 Player: Dull Result: Destroyed by P-80 Master with Gamma Rifle Performance ------------- Evolutions (7) 3500 Regions Visited (18) 3600 Robots Destroyed (350) 1750 Value Destroyed (13066) 13066 Prototype IDs (29) 580 Alien Tech Used (0) 0 Bonus (4671) 4671 TOTAL SCORE: 27167 Bonus ------- High Alert Combat Kills 1559 Follower Combat Kills 2063 Entered DSFs 500 Aligned with FarCom 300 Met Data Miner 300 Met R17 at Cetus 500 Friendly Fire -551 Cogmind --------- Core Integrity 0/1300 Matter 88/300 Energy 77/100 System Corruption 23% Temperature Cool (14) Movement Flying (40) Location -3/Research Parts ------- > --- POWER (2) -------- (None) > --- PROPULSION (5) --- Xenon Bombardment Thruster > --- UTILITY (11) ----- (None) > --- WEAPON (3) ------- (None) > --- INVENTORY (5) ---- Improved Quantum Reactor Improved Quantum Reactor High-capacity Storage Unit PL-3XN's Ring of Power Peak State ------------ > --- POWER ------------ Particle Reactor Particle Reactor > --- PROPULSION ------- Armored Medium Treads Experimental Biometal Heavy Treads Experimental Biometal Heavy Treads > --- UTILITY ---------- High-capacity Storage Unit Improved Weapon Cycler Layered Heavy Armor Plating Layered Heavy Armor Plating Layered Heavy Armor Plating Layered Heavy Armor Plating > --- WEAPON ----------- Hardcell Cannon Hardcell Cannon Hardcell Cannon > --- INVENTORY -------- Micro Fission Core Particle Reactor Improved Quantum Reactor Improved Quantum Reactor Improved Quantum Reactor Armored Medium Treads Layered Heavy Armor Plating Layered Heavy Armor Plating Field Recycling Unit Heavy Gauss Cannon Heavy Gauss Cannon Heavy Gauss Cannon Heavy Gauss Cannon Hypervelocity Mass Driver Carbide Saw PL-3XN's Ring of Power [Rating: 150] Favorites ----------- Power Reinforced Deuterium Engine Engine Reinforced Deuterium Engine Power Core Neutrino Core Reactor Improved Quantum Reactor Propulsion Armored Treads Treads Armored Treads Leg Carbon-fiber Leg Wheel Wheel Hover Unit Improved Gravmag System Flight Unit Xenon Bombardment Thruster Utility Hacking Suite Device Weapon Cycler Storage Huge Storage Unit Processor Armor Integrity Analyzer Hackware Hacking Suite Protection Improved Medium Armor Plating Weapon Gauss Rifle Energy Gun Pulse Rifle Energy Cannon Heavy Phase Cannon Ballistic Gun Gauss Rifle Ballistic Cannon Heavy Hardcell Cannon Launcher Scatter Rocket Array Impact Weapon Mace Slashing Weapon Chainsword Piercing Weapon Heavy Pick Special Melee Weapon Improved Datajack Build | -11 -10 -10 -9 -9 -9 -8 -8 -7 -7 -7 -6 -6 -6 -6 -5 -4 -4 -3 ------- Run | Yrd Mat Min Mat Min Exi Min Mat Fac Low Dat Pro Fac Ext Cet Fac Fac DSF Res Slots Evolved 14 | . . . 2 . . . 2 2 . . . 2 . . 2 2 . 2 Power 1 | . . . . . . . . . . . . . . . . 1 . . Propulsion 3 | . . . 1 . . . . . . . . . . . . 1 . 1 Utility 9 | . . . . . . . 2 2 . . . 2 . . 2 . . 1 Weapon 1 | . . . 1 . . . . . . . . . . . . . . . Parts Attached 396 | 2 14 7 29 7 5 10 31 59 14 . 18 61 42 11 46 3 21 16 Power 31 | . 2 1 2 2 . . 1 5 1 . 1 4 2 1 3 1 2 3 Engine 17 | . 2 . 1 2 . . 1 5 1 . 1 3 . . 1 . . . Core 7 | . . 1 1 . . . . . . . . 1 2 1 . 1 . . Reactor 7 | . . . . . . . . . . . . . . . 2 . 2 3 Propulsion 87 | 2 2 2 10 2 . . 9 12 2 . 2 12 14 2 8 1 2 5 Treads 54 | 2 2 1 7 2 . . 7 7 1 . . 6 9 2 4 1 2 1 Leg 4 | . . . . . . . . . . . . 3 1 . . . . . Wheel 16 | . . 1 3 . . . . 3 1 . 2 . 4 . 2 . . . Hover 9 | . . . . . . . 2 2 . . . 3 . . 2 . . . Flight 4 | . . . . . . . . . . . . . . . . . . 4 Utility 135 | . 4 1 4 1 2 1 9 30 2 . 4 20 14 2 29 1 7 4 Device 53 | . 2 1 2 1 2 . 4 11 . . 2 3 5 1 16 . 2 1 Storage 15 | . 2 . 2 . . . . . . . . 1 4 . 6 . . . Processor 8 | . . . . . . . . 4 . . . 2 2 . . . . . Hackware 6 | . . . . . . . . 3 . . . 2 . . 1 . . . Protection 53 | . . . . . . 1 5 12 2 . 2 12 3 1 6 1 5 3 Artifact . | . . . . . . . . . . . . . . . . . . . Weapon 143 | . 6 3 13 2 3 9 12 12 9 . 11 25 12 6 6 . 10 4 Energy Gun 20 | . 4 1 4 1 2 5 3 . . . . . . . . . . . Energy Cannon 3 | . . . . . 1 . . . . . . . . . 2 . . . Ballistic Gun 69 | . . 1 6 1 . 1 6 11 5 . 8 15 6 3 2 . 2 2 Ballistic Cannon 11 | . . . . . . . . . 1 . . . . . 2 . 7 1 Launcher 22 | . 2 1 2 . . 3 2 . 2 . 1 4 2 3 . . . . Special Weapon . | . . . . . . . . . . . . . . . . . . . Impact Weapon 2 | . . . . . . . . 1 . . . 1 . . . . . . Slashing Weapon 11 | . . . . . . . . . 1 . 2 2 4 . . . 1 1 Piercing Weapon 3 | . . . . . . . . . . . . 3 . . . . . . Special Melee Weapon 2 | . . . 1 . . . 1 . . . . . . . . . . . Unidentified Prototypes 12 | . . . . . 2 . 2 2 . . . . . 1 4 . . 1 Corrupted Parts 4 | . . . . . . . . . . . . 2 . . . . 1 1 System Corruption 22 | . . . . . . . . . . . . 19 . . . . 2 1 Parts Lost 101 | . 1 4 3 . . 1 2 4 1 . 5 12 14 8 10 . 16 20 Power 8 | . . . 1 . . . . . . . 1 1 . 1 1 . 1 2 Propulsion 32 | . 1 2 2 . . . . 2 1 . 2 5 5 3 1 . 2 6 Utility 38 | . . . . . . . . 2 . . 2 5 7 1 7 . 9 5 Weapon 23 | . . 2 . . . 1 2 . . . . 1 2 3 1 . 4 7 Highest Loss Streak 15 | . 1 2 1 . . 1 2 1 1 . 2 4 5 5 5 . 8 15 To Critical Strikes 3 | . . . . . . . . . . . . . . 2 . . 1 . Average Slot Usage (%) 91 | . 97 99 98 100 99 100 98 99 91 92 89 92 94 75 63 82 66 49 Engine 5 | . 14 2 3 11 11 11 9 7 7 7 6 5 1 . . 5 2 . Core 1 | . . 11 7 . . . . . . . . . 4 5 1 5 3 . Treads 16 | . 28 20 11 33 33 33 26 21 . . . 15 14 7 6 10 9 11 Wheel 2 | . . 7 20 . . . . . 14 15 13 . 2 . . . . . Device 11 | . 12 14 11 11 10 4 14 8 7 7 8 13 11 13 18 21 14 2 Storage 8 | . 14 14 11 11 11 11 9 7 7 7 7 5 9 15 8 15 9 3 Processor 6 | . . . . . . . . 6 15 15 13 7 16 13 . . . . Hackware 4 | . . . . . . . . 11 7 7 7 6 . . 3 5 1 . Protection 8 | . . . . . . 6 12 9 7 7 6 12 13 4 5 3 7 10 Energy Gun 4 | . 24 14 22 22 21 16 3 . . . . . . . . . . . Ballistic Gun 14 | . . 7 10 11 11 11 22 22 14 15 15 17 12 13 6 5 3 . Launcher 1 | . 3 5 . . . 5 . . 2 7 3 . 4 . . . . . Peak Build Rating 150 | 6 11 13 21 22 34 29 45 57 58 57 60 70 73 71 132 124 146 150 Average Rating 57 | 6 8 12 19 21 23 27 39 53 57 57 57 63 62 61 112 120 114 112 On Entrance 51 | 6 6 11 13 21 21 26 29 45 57 57 57 59 64 65 62 106 124 145 Naked Turns 8 | . . . . . . . . . . . . . . . . . . 8 Heaviest Build 189 | 13 32 32 95 98 98 104 116 125 115 110 120 138 97 101 157 105 189 187 Greatest Support 197 | 40 40 40 66 66 66 66 66 63 44 44 44 76 84 56 113 170 170 197 Greatest Overweight (x) 24 | . . 2 5 1 1 1 2 11 4 2 9 7 5 24 15 . 1 1 Average Overweight (x) 1 | . . 1 1 1 1 1 1 1 2 2 2 1 1 2 2 . . . Largest Inventory Capacity 25 | 8 15 15 25 25 25 25 25 25 25 25 25 25 20 20 20 20 20 20 Average Capacity 22 | 8 11 15 20 25 25 25 25 25 25 25 25 21 20 20 19 20 20 18 Most Carried 25 | 6 14 15 22 25 25 25 25 25 25 25 25 25 20 20 20 18 20 20 Average Carried 21 | 6 10 14 19 24 24 24 24 24 24 25 24 20 19 14 16 16 18 18 Final Capacity 25 | 8 15 15 25 25 25 25 25 25 25 25 25 25 20 20 20 20 20 5 Final Carried 25 | 6 14 15 22 25 25 25 25 25 25 25 25 24 19 14 20 16 19 4 Class Distribution -------------------- 34% | Scavenger-Gunner 16% | Scavenger-Mutant 11% | Tank 8% | Gunner 6% | Skirmisher 5% | Hacker-Tank 4% | Mutant 4% | Hacker-Gunner 3% | Scavenger-Tank 3% | Scavenger-Skirmisher Dominant Class ---------------- Scavenger-Mutant | -10/Materials Mutant | -10/Mines Tank | -9/Materials Scavenger-Gunner | -9/Mines Scavenger-Gunner | -9/Exiles Skirmisher | -8/Mines Skirmisher | -8/Materials Hacker-Tank | -7/Factory Scavenger-Gunner | -7/Lower Caves Gunner | -7/Data Miner Gunner | -6/Proximity Caves Scavenger-Gunner | -6/Factory Scavenger-Gunner | -6/Extension Scavenger-Mutant | -6/Cetus Tank | -5/Factory Scavenger-Skirmisher | -4/Factory Scavenger-Skirmisher | -4/DSF Tank | -3/Research Resources | -11 -10 -10 -9 -9 -9 -8 -8 -7 -7 -7 -6 -6 -6 -6 -5 -4 -4 -3 ----------- Run | Yrd Mat Min Mat Min Exi Min Mat Fac Low Dat Pro Fac Ext Cet Fac Fac DSF Res Matter Collected 12401 | 220 277 144 439 143 64 321 909 2347 659 . 615 1973 1539 320 1815 . 347 269 Remotely 668 | . . . . . . . . 430 . . . . 238 . . . . . Salvage Created 14648 | . 492 218 878 31 . 322 899 2963 777 . 704 2534 2505 18 1579 . 446 282 Parts 738 | . 35 19 54 . . 38 48 171 29 . 33 91 119 . 71 . 11 19 Haulers Intercepted 13 | . 1 . 1 . . . 2 2 . . . 1 3 . 2 . . 1 Recyclers Shooed 5 | . . . . . . . . 1 . . . 2 2 . . . . . Parts Field Recycled 112 | . . . . . . . 14 27 . . . . 43 . . . 9 19 Retrieved Matter 1006 | . . . . . . . 68 352 . . . . 262 . . . 136 188 Parts Self-Destructed 61 | . . . . . . . . . 20 . 41 . . . . . . . Prevented . | . . . . . . . . . . . . . . . . . . . Kills | -11 -10 -10 -9 -9 -9 -8 -8 -7 -7 -7 -6 -6 -6 -6 -5 -4 -4 -3 ------- Run | Yrd Mat Min Mat Min Exi Min Mat Fac Low Dat Pro Fac Ext Cet Fac Fac DSF Res Combat Hostiles Destroyed 259 | . 12 8 20 2 . 22 18 49 14 . 16 36 20 . 29 . 5 8 Melee 2 | . . . . . . . . . . . 1 1 . . . . . . Guns 160 | . 10 3 16 2 . 5 18 49 4 . 6 32 8 . 5 . 2 . Cannons 37 | . . . . . . . . . 3 . . . . . 23 . 3 8 AOE 58 | . 2 5 3 . . 17 . . 7 . 9 3 12 . . . . . Classes Destroyed 21 | . 7 . 3 1 . 1 1 3 1 . 1 . . 1 2 . . . Worker 12 | . . . 1 . . 1 1 4 . . . 2 3 . . . . . Builder 17 | . 1 1 2 . . 2 . 1 . . . 1 8 . 1 . . . Tunneler 4 | . 1 . . . . . . . . . . . 3 . . . . . Hauler 13 | . 1 . 1 . . . 2 2 . . . 1 3 . 2 . . 1 Recycler 24 | . . . 1 . . . . 7 . . . 4 11 . 1 . . . Operator 9 | . 2 . 2 . . . 3 1 . . . 1 . . . . . . Drone 1 | . . . . . . . . . . . . . . 1 . . . . Watcher 11 | . 1 . 1 . . . . 2 . . 1 3 1 . 2 . . . Swarmer 56 | . 3 3 4 . . 15 4 3 8 . 4 . 6 . . . . 6 Cutter 2 | . . . . . . . . . . . . . . . 2 . . . Saboteur 1 | . . . . . . . . . . . 1 . . . . . . . Grunt 88 | . 9 5 12 1 . 6 7 13 1 . 3 16 5 . 8 . . 2 Brawler 7 | . . . . . . . 1 1 1 . 1 3 . . . . . . Duelist 9 | . . . . . . . . 2 1 . 1 4 . . 1 . . . Sentry 27 | . . . 4 . . . 4 6 2 . 4 3 4 . . . . . Demolisher 1 | . . . . 1 . . . . . . . . . . . . . . Specialist 6 | . . . . . . . . . . . . . . . 4 . 2 . Hunter 20 | . . . . . . 1 2 8 1 . . 2 2 . 3 . 1 . Programmer 35 | . . . . . . . . 15 . . 1 8 1 . 8 . 2 . Heavy 3 | . . . . . . . . 1 . . . . . . 2 . . . Behemoth 5 | . . . . . . . . . 1 . 1 . 2 . 1 . . . Best Kill Streak 10 | . 5 3 5 1 . 7 4 10 6 . 4 3 6 . 10 . 1 4 Combat Bots Only 9 | . 3 3 4 1 . 7 4 5 6 . 4 3 5 . 9 . 1 4 Max Kills in Single Turn 5 | . 2 2 2 1 . 3 2 2 2 . 3 2 5 1 2 . 1 1 Gunslinging 1 | . . . . . . . 1 . . . . . . . . . . . Exploded 3 | . 2 2 2 . . 3 . . 2 . 3 2 3 . . . . . Melee 1 | . . . . . . . . . . . 1 1 . . . . . . Uniques/NPCs Destroyed . | . . . . . . . . . . . . . . . . . . . Combat | -11 -10 -10 -9 -9 -9 -8 -8 -7 -7 -7 -6 -6 -6 -6 -5 -4 -4 -3 -------- Run | Yrd Mat Min Mat Min Exi Min Mat Fac Low Dat Pro Fac Ext Cet Fac Fac DSF Res Hostile Shots Fired 2474 | . 59 41 79 3 . 45 81 311 73 . 123 219 178 55 202 . 659 346 Missed 773 | . 16 11 19 . . 10 24 91 12 . 54 64 55 20 47 . 265 85 Damage Taken 30016 | . 499 399 668 58 . 549 723 2961 1017 . 978 3259 2246 877 3564 . 6316 5902 Core 3336 | . 69 52 110 . . 42 121 199 78 . 184 161 326 12 259 . 411 1312 Absorbed by Shields 373 | . . . 136 . . . . . . . . . 85 127 . . 25 . Ignored by Resistances 179 | . . . . . . . . . . . . 39 . . 102 . 38 . Regen/Repaired (Parts) 776 | . . . . . . . 127 317 . . . . . . . 332 . . Core Remaining (%) 63 | 100 . 51 . . . 62 78 . . . 34 . . 41 74 . 64 . Volleys Fired 804 | . 69 24 65 3 . 28 53 135 33 . 33 124 57 11 91 1 33 44 Largest 3 | . 2 2 3 3 . 3 3 3 3 . 3 3 3 3 3 3 3 3 Hottest 201 | . 105 115 149 142 . 154 191 84 104 . 105 106 130 108 201 201 201 125 Shots Fired 1831 | . 116 37 140 9 1 48 155 408 82 . 73 312 122 20 173 3 78 54 Gun 1514 | . 113 34 138 9 1 30 153 408 48 . 56 308 107 17 54 1 27 10 Cannon 244 | . . . . . . . . . 28 . . . . . 119 2 51 44 Launcher 73 | . 3 3 2 . . 18 2 . 6 . 17 4 15 3 . . . . Special . | . . . . . . . . . . . . . . . . . . . Kinetic 1453 | . . 9 63 3 . 13 112 408 76 . 56 308 107 17 157 1 69 54 Thermal 295 | . 113 25 75 6 1 17 41 . . . . . . . 12 1 4 . Explosive 73 | . 3 3 2 . . 18 2 . 6 . 17 4 15 3 . . . . Electromagnetic 10 | . . . . . . . . . . . . . . . 4 1 5 . Robot Hit Streak 35 | . 9 8 35 6 . 11 10 19 11 . 6 15 22 5 15 1 7 10 Robot Miss Streak 10 | . 3 2 3 1 . 1 5 10 4 . 7 7 8 2 5 3 4 3 Penetration Max 1 | . . . . . . . 1 1 1 . . 1 1 1 1 . 1 1 Secondary Targets 17 | . 1 . 1 . . . 1 7 . . . 6 1 . . . . . Max Gunslinging Chain 1 | . 1 . 1 . . . 1 1 . . . 1 1 . . . . . Shots Hit Robots 1221 | . 78 21 91 6 . 31 84 276 43 . 58 232 107 11 105 1 43 34 Core Hits 797 | . 31 14 36 2 . 38 38 203 36 . 41 132 105 47 46 . 15 13 Critical Kills 11 | . . . . . . . 1 2 1 . . 4 . . 2 . 1 . Critical Parts Destroyed 6 | . . . . . . . . 1 . . 2 1 1 . 1 . . . Critical Strikes 50 | . . 1 4 1 . . 2 3 4 . 4 5 2 . 14 . 6 4 Burn 7 | . . 1 4 1 . . 1 . . . . . . . . . . . Meltdown 1 | . . . . . . . . . . . . . . . 1 . . . Destroy 15 | . . . . . . . 1 3 1 . 2 4 1 . 2 . 1 . Blast 23 | . . . . . . . . . 3 . . . . . 11 . 5 4 Smash 1 | . . . . . . . . . . . . 1 . . . . . . Sever 3 | . . . . . . . . . . . 2 . 1 . . . . . Melee Attacks 64 | . . . . . . . . . 2 . 11 18 31 . . . . 2 Thermal 3 | . . . . . . . . . . . . 3 . . . . . . Impact 9 | . . . . . . . . . . . . 9 . . . . . . Slashing 47 | . . . . . . . . . 2 . 11 1 31 . . . . 2 Piercing 5 | . . . . . . . . . . . . 5 . . . . . . Sneak Attacks 17 | . . . . . . . . . . . 1 2 14 . . . . . Combat Hostiles 1 | . . . . . . . . . . . . 1 . . . . . . Follow-up Attacks . | . . . . . . . . . . . . . . . . . . . Damage Inflicted 37062 | . 1083 580 1667 112 . 1624 1461 5492 1835 . 2441 5598 5735 1108 5454 23 1522 1327 Guns 19700 | . 969 323 1434 112 . 331 1461 5486 749 . 761 4697 1697 242 883 23 425 107 Cannons 7191 | . . . . . . . . . 511 . . . . . 4391 . 1097 1192 Explosions 7525 | . 107 225 231 . . 1275 . . 575 . 1055 620 2419 866 152 . . . Melee 2513 | . . . . . . . . . . . 625 276 1612 . . . . . Ramming 133 | . 7 32 2 . . 18 . 6 . . . 5 7 . 28 . . 28 Kinetic 23427 | . . 98 490 32 . 108 956 5486 1260 . 761 4697 1697 242 4942 23 1336 1299 Thermal 3465 | . 969 285 944 80 . 223 505 . . . . . . . 321 . 138 . Explosive 7405 | . 107 165 171 . . 1275 . . 575 . 1055 620 2419 866 152 . . . Electromagnetic 119 | . . . 60 . . . . . . . . . . . 11 . 48 . Impact 276 | . . . . . . . . . . . . 276 . . . . . . Slashing 2237 | . . . . . . . . . . . 625 . 1612 . . . . . Piercing . | . . . . . . . . . . . . . . . . . . . Highest Corruption 40 | . 6 6 1 1 1 1 . 2 2 2 2 35 40 40 11 . 7 23 Average Corruption 9 | . 3 6 1 1 1 1 . 1 2 2 2 12 37 40 3 . 6 14 Corruption Purged . | . . . . . . . . . . . . . . . . . . . Corruption Blocked . | . . . . . . . . . . . . . . . . . . . Effects 618 | . 11 32 5 6 9 7 . 87 25 . 20 107 197 46 56 . 5 5 Message Errors 158 | . 5 7 3 3 . 2 . 25 10 . 3 23 51 13 11 . 2 . Matter Fused 135 | . 3 5 . 2 2 . . 23 5 . 1 20 52 8 12 . 2 . Heat Flow Errors 66 | . . 4 . . 1 2 . 8 . . 3 15 23 5 5 . . . Energy Discharges 76 | . . 5 . . 2 1 . 10 2 . 5 14 20 5 11 . . 1 Parts Rejected 7 | . . . 1 . . . . 1 . . 1 1 1 1 1 . . . Parts Fused 7 | . . . . . . . . 2 . . . 3 1 . 1 . . . Data Loss (minor) 77 | . 1 6 . . 2 1 . 9 3 . 7 14 16 9 7 . 1 1 Data Loss (major) 25 | . 1 2 1 1 1 . . 5 . . . 3 5 3 3 . . . Misfires 25 | . . 1 . . 1 1 . 3 3 . . 4 9 1 2 . . . Alerts 14 | . 1 2 . . . . . 1 1 . . 2 4 . 3 . . . Misdirections 8 | . . . . . . . . . . . . 2 3 . . . . 3 Weapon Failures 20 | . . . . . . . . . 1 . . 6 12 1 . . . . Overload Shots . | . . . . . . . . . . . . . . . . . . . Overflow Damage 769 | . . . 12 . . 16 . . 35 . 24 58 193 22 354 . . 55 Projectiles 385 | . . . . . . . . . 31 . . . . . 299 . . 55 Explosions 211 | . . . 12 . . 16 . . 4 . 13 49 40 22 55 . . . Melee 173 | . . . . . . . . . . . 11 9 153 . . . . . Knockbacks 36 | . . . . . . . . . 5 . . 1 . . 19 . 5 6 Impact 1 | . . . . . . . . . . . . 1 . . . . . . Kinetic 32 | . . . . . . . . . 4 . . . . . 17 . 5 6 Secondary 3 | . . . . . . . . . 1 . . . . . 2 . . . Self-Inflicted Damage 1085 | . . 9 84 . . 115 . . 81 . 113 175 349 85 74 . . . Shots 33 | . . . 2 . . 5 . . 2 . 3 2 13 4 2 . . . Rammed 15 | . . 3 1 . . 1 . 1 . . . 4 1 . 2 . . 2 Targets Rammed 19 | . 2 4 1 . . 1 . 1 . . . 4 1 . 3 . . 2 Kicked . | . . . . . . . . . . . . . . . . . . . Crushed 4 | . 2 1 . . . . . . . . . . . . 1 . . . Highest Temperature 502 | . 231 261 258 78 123 193 266 376 358 . 222 315 253 276 362 154 439 502 Average Temperature 95 | . 43 62 79 36 80 65 81 75 129 . 86 70 75 97 111 81 131 195 Received Heat Transfer 3272 | . 264 192 261 12 . 153 189 372 45 . 147 693 358 49 339 . . 198 Effects 38 | . . . . . . . 2 2 1 . . . . . 3 . 3 27 Shutdowns 13 | . . . . . . . . . . . . . . . . . 2 11 Energy Bleed 8 | . . . . . . . 2 1 . . . . . . 2 . 1 2 Interference 3 | . . . . . . . . . . . . . . . . . . 3 Matter Decay 3 | . . . . . . . . 1 . . . . . . . . . 2 Short Circuit 3 | . . . . . . . . . 1 . . . . . 1 . . 1 Damage (minor) 1 | . . . . . . . . . . . . . . . . . . 1 Damage (major) 7 | . . . . . . . . . . . . . . . . . . 7 Siege Activations 1 | . . . . . . . . . . . . . . . . . . 1 Total Turns 3 | . . . . . . . . . . . . . . . . . . 3 Longest Duration 3 | . . . . . . . . . . . . . . . . . . 3 Robots Corrupted 2 | . . . . . . . . . . . . 2 . . . . . . Combat Hostiles . | . . . . . . . . . . . . . . . . . . . Parts Fried 3 | . . . . . . . . . . . . 3 . . . . . . Impact Corruptions 4 | . . . . . . . . . . . . 4 . . . . . . Robots Melted 2 | . . . 1 . . . . . . . . . . . 1 . . . Combat Hostiles 2 | . . . 1 . . . . . . . . . . . 1 . . . Parts Melted 13 | . 3 1 5 1 . 2 . . . . . . . . 1 . . . Heat Transferred 7921 | . 2419 766 2368 259 . 518 1110 . . . . . . . 333 . 148 . Parts Sabotaged . | . . . . . . . . . . . . . . . . . . . Parts Stolen . | . . . . . . . . . . . . . . . . . . . Parts Stripped . | . . . . . . . . . . . . . . . . . . . Power Chain Reactions . | . . . . . . . . . . . . . . . . . . . Alert | -11 -10 -10 -9 -9 -9 -8 -8 -7 -7 -7 -6 -6 -6 -6 -5 -4 -4 -3 ------- Run | Yrd Mat Min Mat Min Exi Min Mat Fac Low Dat Pro Fac Ext Cet Fac Fac DSF Res Peak Influence 1298 | . 218 271 455 156 . 348 281 1231 . . . 765 667 485 1298 643 498 315 Initial 635 | . . 19 27 156 . . 94 73 . . . 19 374 329 98 635 452 278 Average 263 | . 87 100 255 58 . 198 153 366 . . . 224 299 365 326 638 463 252 Maximum Alert Level 4 | . 1 1 2 . . 1 1 4 . . . 3 2 2 4 2 2 1 Low Security (%) 53 | 100 94 93 43 100 . 56 89 45 . . . 58 18 1 52 . . 16 Level 1 22 | . 5 6 29 . . 43 10 14 . . . 17 56 57 17 . . 83 Level 2 17 | . . . 27 . . . . 20 . . . 21 25 41 20 100 100 . Level 3 3 | . . . . . . . . 12 . . . 2 . . 4 . . . Level 4 2 | . . . . . . . . 7 . . . . . . 6 . . . Level 5 . | . . . . . . . . . . . . . . . . . . . High Security . | . . . . . . . . . . . . . . . . . . . Max Security . | . . . . . . . . . . . . . . . . . . . Squads Dispatched 81 | . 2 . 4 1 . 1 2 30 . . 1 14 4 . 18 . 2 2 Investigation 13 | . . . 2 . . 1 . 3 . . . 2 2 . 3 . . . Extermination 29 | . . . . . . . . 14 . . . 8 . . 6 . . 1 Reinforcement 22 | . 2 . 2 1 . . 2 3 . . 1 2 . . 6 . 2 1 Assault 7 | . . . . . . . . 1 . . . 1 2 . 3 . . . Garrison 10 | . . . . . . . . 9 . . . 1 . . . . . . Intercept . | . . . . . . . . . . . . . . . . . . . Searches Triggered . | . . . . . . . . . . . . . . . . . . . Data Miner Redirects 5 | . . . . . . . . . . . . 1 1 . 3 . . . Construction Impeded 4 | . . . 1 1 . . . . . . 1 1 . . . . . . Haulers Reinforced 2 | . . . . . . . . 1 . . . . . . . . . 1 Active Scanning Responses . | . . . . . . . . . . . . . . . . . . . Cargo Convoy Interrupts 1 | . . . . . . . . . . . . . . . 1 . . . Stealth | -11 -10 -10 -9 -9 -9 -8 -8 -7 -7 -7 -6 -6 -6 -6 -5 -4 -4 -3 --------- Run | Yrd Mat Min Mat Min Exi Min Mat Fac Low Dat Pro Fac Ext Cet Fac Fac DSF Res Distress Signals 20 | . 3 1 4 . . . 1 2 . . . 1 1 2 2 . . 3 Communications Jammed . | . . . . . . . . . . . . . . . . . . . Distress Signals . | . . . . . . . . . . . . . . . . . . . Times Spotted 474 | . 21 17 32 2 . 19 34 71 15 . 19 60 53 18 67 1 15 30 Peak Tracking Total 14 | . 4 3 5 1 . 7 4 6 6 . 5 4 9 8 8 1 7 14 Tactical Retreats 36 | . 1 6 2 . . 1 1 4 1 . 2 3 4 1 3 . 3 4 Traps | -11 -10 -10 -9 -9 -9 -8 -8 -7 -7 -7 -6 -6 -6 -6 -5 -4 -4 -3 ------- Run | Yrd Mat Min Mat Min Exi Min Mat Fac Low Dat Pro Fac Ext Cet Fac Fac DSF Res Traps Triggered 20 | . 4 . . . . . . 3 . . 1 1 7 . 2 . 2 . Indirectly . | . . . . . . . . . . . . . . . . . . . Trap Hack Attempts . | . . . . . . . . . . . . . . . . . . . Triggered . | . . . . . . . . . . . . . . . . . . . Disarmed . | . . . . . . . . . . . . . . . . . . . Reprogrammed . | . . . . . . . . . . . . . . . . . . . Reused . | . . . . . . . . . . . . . . . . . . . Traps Extracted . | . . . . . . . . . . . . . . . . . . . Installed . | . . . . . . . . . . . . . . . . . . . Triggered . | . . . . . . . . . . . . . . . . . . . Machines | -11 -10 -10 -9 -9 -9 -8 -8 -7 -7 -7 -6 -6 -6 -6 -5 -4 -4 -3 ---------- Run | Yrd Mat Min Mat Min Exi Min Mat Fac Low Dat Pro Fac Ext Cet Fac Fac DSF Res Machines Disabled 39 | . . 1 1 . 1 5 1 5 . . 3 3 2 1 14 . 1 1 Max in Single Turn 4 | . . 1 1 . 1 2 1 1 . . 2 1 1 . 4 . 1 1 Garrison Access 3 | . . . . . . . . . . . . 2 . . 1 . . . Machines Repaired . | . . . . . . . . . . . . . . . . . . . Machines Dismantled . | . . . . . . . . . . . . . . . . . . . Machines Sabotaged . | . . . . . . . . . . . . . . . . . . . Overloaded Fab Kills . | . . . . . . . . . . . . . . . . . . . Hacking | -11 -10 -10 -9 -9 -9 -8 -8 -7 -7 -7 -6 -6 -6 -6 -5 -4 -4 -3 --------- Run | Yrd Mat Min Mat Min Exi Min Mat Fac Low Dat Pro Fac Ext Cet Fac Fac DSF Res Machines Accessed 62 | . 3 . 6 . 1 1 3 14 1 4 2 11 4 . 10 2 . . Terminals 25 | . 2 . 3 . . 1 1 7 . . 1 3 3 . 3 1 . . Fabricators 6 | . . . . . . . . 1 . . . 3 . . 2 . . . Repair Stations 8 | . 1 . . . . . 1 3 . . . . . . 2 1 . . Recycling Units 9 | . . . 2 . . . 1 1 . . 1 2 1 . 1 . . . Scanalyzers 3 | . . . 1 . . . . . . . . 1 . . 1 . . . Garrison Access 5 | . . . . . . . . 2 . . . 2 . . 1 . . . Total Hacks 151 | . 7 . 21 . 1 4 9 29 1 26 4 21 7 . 16 5 . . Successful 91 | . 2 . 11 . 1 2 5 13 1 26 1 14 3 . 8 4 . . Failed 60 | . 5 . 10 . . 2 4 16 . . 3 7 4 . 8 1 . . Catastrophic 11 | . 1 . 2 . . 1 1 3 . . 1 . 1 . 1 . . . Database Lockouts . | . . . . . . . . . . . . . . . . . . . Manual 39 | . 1 . 9 . 1 . 6 6 . . . 4 2 7 3 . . . Terminals 47 | . 4 . 8 . . 4 2 14 . . 2 4 5 . 3 1 . . Fabricators 12 | . . . . . . . . 2 . . . 6 . . 4 . . . Repair Stations 19 | . 3 . . . . . 3 6 . . . . . . 3 4 . . Recycling Units 22 | . . . 6 . . . 4 2 . . 2 5 2 . 1 . . . Scanalyzers 12 | . . . 7 . . . . . . . . 2 . . 3 . . . Garrison Access 11 | . . . . . . . . 5 . . . 4 . . 2 . . . Terminal Hacks 45 | . 1 . 4 . 1 2 1 4 1 26 1 2 1 . . 1 . . Record 17 | . . . . . 1 2 . 2 . 11 . . 1 . . . . . Part Schematic 8 | . . . . . . . . . . 8 . . . . . . . . Robot Schematic 4 | . . . . . . . . . . 4 . . . . . . . . Robot Analysis 1 | . . . . . . . . 1 . . . . . . . . . . Prototype ID Bank 8 | . 1 . 2 . . . . 1 . 3 . 1 . . . . . . Open Door 2 | . . . . . . . . . 1 . 1 . . . . . . . Open DSF 1 | . . . . . . . . . . . . . . . . 1 . . Branch Access Points 2 | . . . 1 . . . 1 . . . . . . . . . . . Emergency Access Points 1 | . . . 1 . . . . . . . . . . . . . . . Unreport Threat 1 | . . . . . . . . . . . . 1 . . . . . . Fabricator Hacks 11 | . . . . . . . . 2 . . . 5 . . 4 . . . Load Schematic 6 | . . . . . . . . 1 . . . 3 . . 2 . . . Build 5 | . . . . . . . . 1 . . . 2 . . 2 . . . Repair Station Hacks 13 | . 1 . . . . . 2 6 . . . . . . 1 3 . . Scan Component 8 | . 1 . . . . . 1 3 . . . . . . 1 2 . . Repair 5 | . . . . . . . 1 3 . . . . . . . 1 . . Recycling Unit Hacks 2 | . . . . . . . . . . . . 1 . . 1 . . . Retrieve Components 2 | . . . . . . . . . . . . 1 . . 1 . . . Scanalyzer 9 | . . . 6 . . . . . . . . 2 . . 1 . . . Insert Component 5 | . . . 3 . . . . . . . . 1 . . 1 . . . Analyze 4 | . . . 3 . . . . . . . . 1 . . . . . . Garrison Access Hacks 3 | . . . . . . . . . . . . 2 . . 1 . . . Seal Access 3 | . . . . . . . . . . . . 2 . . 1 . . . Unauthorized Hacks 8 | . . . 1 . . . 2 1 . . . 2 2 . . . . . Terminals 1 | . . . . . . . . 1 . . . . . . . . . . Assimilate 1 | . . . . . . . . 1 . . . . . . . . . . Fabricators . | . . . . . . . . . . . . . . . . . . . Repair Stations . | . . . . . . . . . . . . . . . . . . . Recycling Units 7 | . . . 1 . . . 2 . . . . 2 2 . . . . . Reject 3 | . . . . . . . 1 . . . . 1 1 . . . . . Mask 4 | . . . 1 . . . 1 . . . . 1 1 . . . . . Scanalyzers . | . . . . . . . . . . . . . . . . . . . Garrison Access . | . . . . . . . . . . . . . . . . . . . Data Cores Recovered 2 | . . . 1 . . . 1 . . . . . . . . . . . Used 1 | . . . 1 . . . . . . . . . . . . . . . Hacking Detections 47 | . 3 . 6 . . 1 2 14 . . 2 7 1 1 8 2 . . Full Trace Events 13 | . 1 . 2 . . 1 . 3 . . . 2 1 . 3 . . . Feedback Events . | . . . . . . . . . . . . . . . . . . . Feedback Blocked . | . . . . . . . . . . . . . . . . . . . Robot Schematics Acquired 4 | . . . . . . . . . . 4 . . . . . . . . Robots Built . | . . . . . . . . . . . . . . . . . . . Authchips . | . . . . . . . . . . . . . . . . . . . Time . | . . . . . . . . . . . . . . . . . . . Total Robot Build Rating . | . . . . . . . . . . . . . . . . . . . Part Schematics Acquired 11 | . . . 3 . . . . . . 8 . . . . . . . . Parts Built 5 | . . . . . . . . 1 . . . 2 . . 2 . . . Authchips . | . . . . . . . . . . . . . . . . . . . Time 522 | . . . . . . . . 47 . . . 222 . . 253 . . . Total Part Build Rating 29 | . . . . . . . . 5 . . . 12 . . 12 . . . Parts Repaired 5 | . . . . . . . 1 3 . . . . . . . 1 . . Time 189 | . . . . . . . 32 132 . . . . . . . 25 . . Parts Recycled . | . . . . . . . . . . . . . . . . . . . Recycled Matter . | . . . . . . . . . . . . . . . . . . . Retrieved Matter . | . . . . . . . . . . . . . . . . . . . Retrieved Components 7 | . . . . . . . . . . . . 1 . . 6 . . . Parts Scanalyzed 5 | . . . 3 . . . . . . . . 1 . . 1 . . . Part Schematics Acquired 3 | . . . 3 . . . . . . . . . . . . . . . Parts Damaged 1 | . . . 1 . . . . . . . . . . . . . . . Bothacking | -11 -10 -10 -9 -9 -9 -8 -8 -7 -7 -7 -6 -6 -6 -6 -5 -4 -4 -3 ------------ Run | Yrd Mat Min Mat Min Exi Min Mat Fac Low Dat Pro Fac Ext Cet Fac Fac DSF Res Used RIF Installer . | . . . . . . . . . . . . . . . . . . . Robots Hacked . | . . . . . . . . . . . . . . . . . . . Non-combat . | . . . . . . . . . . . . . . . . . . . Combat . | . . . . . . . . . . . . . . . . . . . Robot Hacks Applied . | . . . . . . . . . . . . . . . . . . . Relay Couplers Released 1 | . . . . . . . . . . . . 1 . . . . . . Machine Destruction 1 | . . . . . . . . . . . . 1 . . . . . . Fabnet Peak Effective % . | . . . . . . . . . . . . . . . . . . . Robots Rewired 18 | . . . . . . . . . 1 . 10 . 7 . . . . . Allies Hacked . | . . . . . . . . . . . . . . . . . . . Hacks Repelled . | . . . . . . . . . . . . . . . . . . . Allies | -11 -10 -10 -9 -9 -9 -8 -8 -7 -7 -7 -6 -6 -6 -6 -5 -4 -4 -3 -------- Run | Yrd Mat Min Mat Min Exi Min Mat Fac Low Dat Pro Fac Ext Cet Fac Fac DSF Res Total Allies 33 | . . 3 . 2 . . . 1 1 . 10 . 16 . . . . . Largest Group 7 | . . 3 . 2 2 . . 1 1 . 6 1 7 1 . . . . Highest-Rated Group 250 | . . 40 . 45 45 . . 26 32 . 162 41 250 159 . . . . Highest-Rated Ally 159 | . . 16 . 31 31 . . 26 32 . 41 41 159 159 . . . . Total Orders 20 | . . . . . . . . 1 . . . 1 . 3 15 . . . STAY 1 | . . . . . . . . 1 . . . . . . . . . . ROAM 1 | . . . . . . . . . . . . . . 1 . . . . EXPLORE 2 | . . . . . . . . . . . . . . . 2 . . . RETURN 16 | . . . . . . . . . . . . 1 . 2 13 . . . Ally Attacks 515 | . . 26 . 1 . . . . 1 . 27 4 105 75 276 . . . Total Damage 10562 | . . 245 . 22 . . . . 47 . 557 117 2375 2127 5072 . . . Kills 62 | . . 5 . 1 . . . . . . 2 . 11 11 32 . . . Allies Corrupted 1 | . . . . . . . . . . . . . . . 1 . . . Allies Melted . | . . . . . . . . . . . . . . . . . . . Intel | -11 -10 -10 -9 -9 -9 -8 -8 -7 -7 -7 -6 -6 -6 -6 -5 -4 -4 -3 ------- Run | Yrd Mat Min Mat Min Exi Min Mat Fac Low Dat Pro Fac Ext Cet Fac Fac DSF Res Robot Analysis Total 1 | . . . . . . . . 1 . . . . . . . . . . Derelict Logs Recovered 5 | . . 1 . 1 . . . . 2 . 1 . . . . . . . Drone Launches 70 | . . . . . . . . . . . . 1 . 4 65 . . . Drone Recoveries 39 | . . . . . . . . . . . . 1 . 3 35 . . . Exploration | -11 -10 -10 -9 -9 -9 -8 -8 -7 -7 -7 -6 -6 -6 -6 -5 -4 -4 -3 ------------- Run | Yrd Mat Min Mat Min Exi Min Mat Fac Low Dat Pro Fac Ext Cet Fac Fac DSF Res Turns Passed 35682 | 10 1172 1132 1027 1425 930 1471 2108 7066 1679 102 1456 6767 3609 809 3768 89 358 704 Spaces Moved 14755 | 5 583 777 554 581 382 571 712 2586 1169 79 946 2519 1450 199 1216 43 158 225 Core 25 | . . . . . . . . . . . . 1 . 1 . . . 23 Treads 9987 | 5 583 290 82 581 382 571 712 2337 . . . 1740 1012 198 1146 43 158 147 Legs 124 | . . . . . . . . . . . . 124 . . . . . . Wheels 4103 | . . 487 472 . . . . 249 1169 79 946 193 438 . 70 . . . Hover 461 | . . . . . . . . . . . . 461 . . . . . . Flight 55 | . . . . . . . . . . . . . . . . . . 55 Fastest Speed 37 | 160 160 110 95 240 240 240 240 120 130 130 125 52 115 240 152 135 135 37 Average Speed 207 | 160 160 128 122 240 240 240 244 238 133 130 131 233 215 365 258 135 143 122 Slowest Speed 1250 | 160 160 160 320 240 240 240 325 330 160 130 225 625 400 1250 560 135 215 232 Overloaded Moves . | . . . . . . . . . . . . . . . . . . . Propulsion Burnouts . | . . . . . . . . . . . . . . . . . . . Robots Hopped 2 | . . . . . . . . . . . . . . . . . . 2 Cave-ins Triggered 4 | . . . . . . . . . . . . 3 1 . . . . . Exploration Rate (%) 63 | 2 89 98 45 99 77 98 57 61 98 68 91 38 97 73 22 1 90 4 Regions Visited 18 Branch Regions 9 Pre-discovered Areas 4 | . . 1 . 1 1 . . . . 1 . . . . . . . . Known Exits Taken 3 | . . . 1 . . 1 . . . . . . . . . 1 . . Unknown Exits Taken 14 | 1 1 1 . 1 1 . 1 1 1 1 1 1 1 1 1 . . . Scrap Searched 12 | . . 1 . 2 . 2 . . 4 . 3 . . . . . . . Spaces Dug 53 | . . . 4 . . 20 . . . . . 20 7 . 2 . . . Terrain Destroyed 1119 | . 21 36 7 . . 119 16 3 85 . 196 66 361 93 93 . 11 12 Melee 11 | . . . . . . . . . . . . 4 7 . . . . . Projectile 79 | . . . . . . . 2 3 8 . 1 7 1 . 34 . 11 12 AOE 1029 | . 21 36 7 . . 119 14 . 77 . 195 55 353 93 59 . . . Terrain Rammed 1 | . . . . . . . . . . . . . . . 1 . . . Walls Destroyed 1 | . . . . . . . . . . . . . . . 1 . . . Machines Disabled . | . . . . . . . . . . . . . . . . . . . Actions | -11 -10 -10 -9 -9 -9 -8 -8 -7 -7 -7 -6 -6 -6 -6 -5 -4 -4 -3 --------- Run | Yrd Mat Min Mat Min Exi Min Mat Fac Low Dat Pro Fac Ext Cet Fac Fac DSF Res Total 18506 | 6 706 874 796 609 400 628 1021 3279 1233 78 1092 3157 1763 262 1680 72 247 603 Wait 1814 | . 24 52 110 8 . 16 178 431 . . 22 342 30 37 228 25 13 298 Move 14732 | 4 582 776 553 580 381 570 711 2585 1168 78 945 2517 1449 198 1215 42 157 221 Hop 2 | . . . . . . . . . . . . . . . . . . 2 Pick Up 208 | . 8 7 18 4 2 1 20 21 6 . 8 45 11 1 42 . 12 2 Fast Attach 115 | . 1 . 5 . 5 1 6 15 1 . 3 22 13 2 23 1 10 7 Attach 84 | . 1 4 4 . . 1 5 5 2 . 6 12 6 7 17 2 5 7 Detach 11 | . . . . . . . . . . . . 2 . 2 3 1 1 2 Swap 197 | 2 12 3 20 7 . 8 20 39 11 . 9 27 23 2 6 . 6 2 Drop 264 | . 7 4 20 7 12 2 28 45 9 . 7 43 15 2 40 . 9 14 Fire 804 | . 69 24 65 3 . 28 53 135 33 . 33 124 57 11 91 1 33 44 Melee 64 | . . . . . . . . . 2 . 11 18 31 . . . . 2 Ram 4 | . . 2 1 . . . . . . . . . . . 1 . . . Kick . | . . . . . . . . . . . . . . . . . . . Crush 16 | . 2 2 . . . 1 . 1 . . . 4 1 . 3 . . 2 Escape Stasis 18 | . . . . . . . . 2 . . . 1 12 . 2 . 1 . Rewire 173 | . . . . . . . . . 1 . 48 . 115 . 9 . . . Trap . | . . . . . . . . . . . . . . . . . . . Miscellaneous . | . . . . . . . . . . . . . . . . . . . Route ------- -11/Scrapyard -10/Materials (discovered 5 exits: *Mat x3 / [*Min x2]) -10/Mines (discovered 2 exits: *Mat x2) -9/Materials (discovered 3 exits: *Mat x2 / *Min) -9/Mines (discovered 3 exits: *Mat x2 / *Exi) -9/Exiles (discovered 2 exits: *Min x2) -8/Mines (discovered 2 exits: *Mat x2) -8/Materials (discovered 4 exits: *Fac x2 / *Sto x2) -7/Factory (discovered 4 exits: *Fac x2 / *Low x2) -7/Lower Caves (discovered 2 exits: [*Low] / *Dat) -7/Data Miner -6/Proximity Caves -6/Factory (discovered 3 exits: *Fac / Low / *Ext) -6/Extension (discovered 3 exits: *Fac x2 / *Cet) -6/Cetus (discovered 2 exits: *Fac / [*Arc]) -5/Factory -4/Factory -4/DSF -3/Research History --------- Turn | Location | Event 4 | -11/Scrapyard | Discovered new exit (range 3) 11 | -11/Scrapyard | Entered Materials 327 | -10/Materials | Discovered new exit (range 16) 434 | -10/Materials | Discovered new exit (range 5) 614 | -10/Materials | Build established: Scavenger-Mutant 762 | -10/Materials | Discovered new exit (range 10) 887 | -10/Materials | Discovered new exit (range 6) 990 | -10/Materials | Discovered new exit (range 10) 1183 | -10/Materials | Entered Mines 1201 | -10/Mines | Learned 8 Materials zone layouts 1223 | -10/Mines | Learned location of Storage (-8) 1493 | -10/Mines | Found a hidden stash of uninstalled traps 1708 | -10/Mines | Discovered new exit (range 8) 1885 | -10/Mines | Assisted by bots powering up and referring to "LRC-V3" 1956 | -10/Mines | Build established: Mutant 2058 | -10/Mines | Discovered new exit (range 7) 2097 | -10/Mines | A weapon hastily lodged in a ceiling crevice suddenly fell to the ground 2315 | -10/Mines | Entered Materials 2315 | -9/Materials | Evolved 2 slots: Propulsion x1, Weapon x1 2316 | -9/Materials | Identified exit to Materials 2515 | -9/Materials | Identified exit to Mines 2652 | -9/Materials | Build established: Tank 3167 | -9/Materials | Build established: Scavenger-Gunner 3342 | -9/Materials | Entered Mines 3551 | -9/Mines | Assembled infested the area 3691 | -9/Mines | Discovered exit to Materials (range 15) 3920 | -9/Mines | Joined a pair of Derelicts in attacking an 0b10 outpost 4411 | -9/Mines | Discovered exit to Materials (range 10) 4459 | -9/Mines | Deemed a non-threat by the Exiles lab entrance 4459 | -9/Mines | Discovered new exit (range 5) 4577 | -9/Mines | Found DCF Scrap (12 items) 4767 | -9/Mines | Entered Exiles 4767 | -9/Exiles | Accompanied by 2 allies 4797 | -9/Exiles | Led the pair of lost Derelicts to a safe place 4813 | -9/Exiles | Discovered new exit (range 14) 4885 | -9/Exiles | Met 8R-AWN 4923 | -9/Exiles | Met EX-HEX 4998 | -9/Exiles | Met EX-BIN 5031 | -9/Exiles | Aligned with FarCom system 5034 | -9/Exiles | Given EX-Vault access code 5115 | -9/Exiles | Opened EX-Vault 5123 | -9/Exiles | Found Prototype Device 5123 | -9/Exiles | Identified PSU Rigger 5133 | -9/Exiles | Found Prototype Energy Cannon 5133 | -9/Exiles | Identified YOLO Cannon 5157 | -9/Exiles | Found Prototype Device 5206 | -9/Exiles | Warned to stay clear of 0b10 Research branches 5271 | -9/Exiles | Met EX-DEC 5285 | -9/Exiles | Learned location of Zion (-6) 5404 | -9/Exiles | Visited The Gauntlet 5666 | -9/Exiles | Discovered new exit (range 14) 5697 | -9/Exiles | Left Exiles lab with Army-in-a-Box 5697 | -9/Exiles | Entered Mines 5993 | -8/Mines | Build established: Scavenger-Skirmisher 6048 | -8/Mines | Discovered exit to Materials (range 11) 6310 | -8/Mines | Destroyed 7 combat bots 6574 | -8/Mines | Build established: Skirmisher 6719 | -8/Mines | Discovered exit to Materials (range 6) 7168 | -8/Mines | Entered Materials 7168 | -8/Materials | Evolved 2 slots: Utility x2 7636 | -8/Materials | Repaired Imp. Treads 7959 | -8/Materials | Discovered new exit (range 9) 7995 | -8/Materials | Identified exit to Storage 9019 | -8/Materials | Discovered new exit (range 16) 9129 | -8/Materials | Build established: Tank 9276 | -8/Materials | Entered Factory 9276 | -7/Factory | Evolved 2 slots: Utility x2 9680 | -7/Factory | Build established: Gunner 10004 | -7/Factory | Build established: Hacker-Tank 10107 | -7/Factory | Repaired Imp. Medium Armor Plating 10787 | -7/Factory | Fabricated Plasma Flamer (x1) 11384 | -7/Factory | Repaired Kinecellerator 11734 | -7/Factory | Discovered new exit (range 11) 12626 | -7/Factory | Build established: Hacker-Gunner 13481 | -7/Factory | Discovered new exit (range 15) 14204 | -7/Factory | Garrison activated, responded to threat 14276 | -7/Factory | Discovered new exit (range 3) 14318 | -7/Factory | Build established: Gunner 14763 | -7/Factory | Garrison activated, responded to threat 15017 | -7/Factory | Repaired Gauss Rifle 15276 | -7/Factory | First assault squad dispatched 15308 | -7/Factory | Build established: Scavenger-Gunner 15786 | -7/Factory | Garrison activated, responded to threat 16202 | -7/Factory | Discovered new exit (range 15) 16342 | -7/Factory | Entered Lower Caves 17008 | -7/Lower Caves | Attracted the attention of an 0b10 outpost 17128 | -7/Lower Caves | Spotted B-75 Beast 17140 | -7/Lower Caves | Destroyed B-75 Beast 17155 | -7/Lower Caves | Learned Factory terminal intel 17270 | -7/Lower Caves | A Derelict revealed a hidden shortcut to meet someone special 17400 | -7/Lower Caves | Discovered new exit (range 8) 17603 | -7/Lower Caves | Build established: Gunner 17722 | -7/Lower Caves | Encountered a Warlord checkpoint 17783 | -7/Lower Caves | Learned Factory interactive machine intel 18021 | -7/Lower Caves | Entered Data Miner 18021 | -7/Data Miner | Discovered new exit (range 6) 18046 | -7/Data Miner | Met Data Miner 18070 | -7/Data Miner | Learned location of Section 7 (-2) 18070 | -7/Data Miner | Acquired the access code to Warlord's prototype stash 18093 | -7/Data Miner | Received God Mode back door access code from Data Miner 18123 | -7/Data Miner | Entered Proximity Caves 18222 | -6/Proximity Caves | Learned 4 Factory zone layouts 18587 | -6/Proximity Caves | Spotted B-75 Beast 18588 | -6/Proximity Caves | Entered a huge 0b10 base via the front door 18598 | -6/Proximity Caves | Core integrity fell below 50% 18603 | -6/Proximity Caves | Destroyed B-75 Beast 18701 | -6/Proximity Caves | Derelicts attacked a huge 0b10 base 18771 | -6/Proximity Caves | Lost 3 allies 18775 | -6/Proximity Caves | Discovered new exit (range 16) 19087 | -6/Proximity Caves | Lost 6 allies 19287 | -6/Proximity Caves | Lost 3 allies 19319 | -6/Proximity Caves | Build established: Scavenger-Mutant 19332 | -6/Proximity Caves | Spotted B-75 Beast 19340 | -6/Proximity Caves | Allies destroyed B-75 Beast 19579 | -6/Proximity Caves | Entered Factory 19579 | -6/Factory | Accompanied by 1 ally 19579 | -6/Factory | Evolved 2 slots: Utility x2 19580 | -6/Factory | Identified exit to Lower Caves 19581 | -6/Factory | Loaded intel: 54 interactive machine locations 19582 | -6/Factory | Loaded intel: 28 terminal locations 19719 | -6/Factory | Garrison activated, responded to threat 19968 | -6/Factory | Build established: Scavenger-Tank 21148 | -6/Factory | Build established: Scavenger-Gunner 21196 | -6/Factory | Found Launcher Loader 21931 | -6/Factory | Build established: Scavenger-Mutant 22367 | -6/Factory | Build established: Scavenger-Gunner 22402 | -6/Factory | Fabricated Combat Drone Bay? 22858 | -6/Factory | Incoming investigation squad redirected 22884 | -6/Factory | Fabricated Adv. Drone Bay? 23716 | -6/Factory | Discovered new exit (range 9) 24154 | -6/Factory | Crushed by falling debris 24171 | -6/Factory | Crushed by falling debris 24172 | -6/Factory | Crushed by falling debris 24203 | -6/Factory | Lost 3 parts (2n1w) 25290 | -6/Factory | Discovered new exit (range 10) 25339 | -6/Factory | System corruption reached 10% 25364 | -6/Factory | Lost 3 parts (3n) 25458 | -6/Factory | Found Scatter Rocket Array 25462 | -6/Factory | Found Scatter Rocket Array 25529 | -6/Factory | First assault squad dispatched 25595 | -6/Factory | Build established: Scavenger-Mutant 25615 | -6/Factory | System corruption reached 30% 25650 | -6/Factory | Lost 4 parts (1p3u) 25967 | -6/Factory | Build established: Scavenger-Gunner 26346 | -6/Factory | Entered Extension 26460 | -6/Extension | Rescued a captive Derelict 26768 | -6/Extension | Rescued a captive Derelict 27022 | -6/Extension | Rescued a captive Derelict 27023 | -6/Extension | Rescued a captive Derelict 27372 | -6/Extension | Spotted B-75 Beast 27449 | -6/Extension | Lost 5 allies 27468 | -6/Extension | Destroyed B-75 Beast 27772 | -6/Extension | Spotted B-75 Beast 27779 | -6/Extension | Destroyed B-75 Beast 27796 | -6/Extension | Disrupted transfer network 27810 | -6/Extension | Lost 3 parts (1n1u1w) 27846 | -6/Extension | Discovered new exit (range 3) 28071 | -6/Extension | Crushed by falling debris 28102 | -6/Extension | Build established: Scavenger-Mutant 29039 | -6/Extension | Core integrity fell below 50% 29078 | -6/Extension | Lost 5 parts (4u1w) 29099 | -6/Extension | Discovered new exit (range 16) 29101 | -6/Extension | Discovered new exit (range 15) 29294 | -6/Extension | Rescued a captive Derelict 29310 | -6/Extension | Build established: Scavenger-Gunner 29323 | -6/Extension | Rescued a captive Derelict 29511 | -6/Extension | Rescued a captive Derelict 29511 | -6/Extension | Rescued a captive Derelict 29668 | -6/Extension | Rescued A7 29846 | -6/Extension | First assault squad dispatched 29867 | -6/Extension | Incoming assault squad redirected 29905 | -6/Extension | Disrupted transfer network 29955 | -6/Extension | Entered Cetus 29955 | -6/Cetus | Accompanied by 1 ally (A7) 29960 | -6/Cetus | Acquired a Cetus Manufacturing Module code from A7 29984 | -6/Cetus | Lost 3 allies 29988 | -6/Cetus | Spotted Cetus Guard 29988 | -6/Cetus | Spotted Cetus Guard 29992 | -6/Cetus | Spotted Cetus Guard 30004 | -6/Cetus | Allies destroyed Cetus Guard 30005 | -6/Cetus | Spotted Cetus Guard 30011 | -6/Cetus | Allies destroyed Cetus Guard 30021 | -6/Cetus | Allies destroyed Cetus Guard 30025 | -6/Cetus | Allies destroyed Cetus Guard 30042 | -6/Cetus | Discovered new exit (range 60) 30046 | -6/Cetus | Lost 3 parts (1n1u1w) 30050 | -6/Cetus | Discovered new exit (range 60) 30051 | -6/Cetus | Spotted Cetus Guard 30057 | -6/Cetus | Spotted Cetus Guard 30109 | -6/Cetus | Spotted Cetus Guard 30110 | -6/Cetus | Spotted Cetus Guard 30122 | -6/Cetus | Cetus Manufacturing Module disabled 30125 | -6/Cetus | Allies destroyed Cetus Guard 30127 | -6/Cetus | Allies destroyed Cetus Guard 30133 | -6/Cetus | Allies destroyed Cetus Guard 30142 | -6/Cetus | Allies destroyed Cetus Guard 30171 | -6/Cetus | Lost 5 parts (1p2n2w) 30266 | -6/Cetus | Failed to start Cetus Manufacturing Module 30451 | -6/Cetus | Build established: Scavenger-Mutant 30691 | -6/Cetus | Met Revision 17 30705 | -6/Cetus | Security sweep announced 30764 | -6/Cetus | Entered Factory 30764 | -5/Factory | Evolved 2 slots: Utility x2 30838 | -5/Factory | Identified Army-in-a-Box 31884 | -5/Factory | Fabricated Combat Drone Bay? 31899 | -5/Factory | Cargo convoy interrupted 31920 | -5/Factory | Incoming assault squad redirected 31953 | -5/Factory | Lost 17 allies 32159 | -5/Factory | Lost 6 allies 32180 | -5/Factory | Found PL-3XN's Ring of Power 32567 | -5/Factory | Build established: Tank 33630 | -5/Factory | Spotted B-75 Beast 33662 | -5/Factory | Destroyed B-75 Beast 33764 | -5/Factory | First assault squad dispatched 33781 | -5/Factory | Incoming assault squad redirected 34037 | -5/Factory | Incoming investigation squad redirected 34099 | -5/Factory | Fabricated Combat Drone Bay? 34246 | -5/Factory | Destroyed 9 combat bots 34298 | -5/Factory | System corruption reached 10% 34351 | -5/Factory | Lost 5 parts (4u1w) 34455 | -5/Factory | Discovered new exit (range 11) 34532 | -5/Factory | Entered another Factory area 34532 | -4/Factory | Evolved 2 slots: Power x1, Propulsion x1 34584 | -4/Factory | Repaired Imp. Heavy Armor Plating 34621 | -4/Factory | Identified exit to DSF 34621 | -4/Factory | Entered DSF 34677 | -4/DSF | Additional patrols routed to DSF 34793 | -4/DSF | Lost 4 parts (1n3u) 34861 | -4/DSF | Lost 8 parts (1p5u2w) 34922 | -4/DSF | Discovered new exit (range 16) 34979 | -4/DSF | Entered Research 34979 | -3/Research | Evolved 2 slots: Propulsion x1, Utility x1 35536 | -3/Research | Lost 5 parts (1n2u2w) 35619 | -3/Research | System corruption reached 10% 35635 | -3/Research | Core integrity fell below 50% 35662 | -3/Research | Core integrity fell below 20% 35683 | -3/Research | Destroyed by P-80 Master with Gamma Rifle Last Messages --------------- 35654_ Acquired Unknown Flight Unit. 35654_ Identified Xenon Bombardment Thruster. 35657_ Acquired Corrupted Xenon Bombardment Thruster. 35657_ Integrated Corrupted Xenon Bombardment Thruster (+1). 35657_ Xenon Bombardment Thruster destroyed. 35658_ S-43 Plague destroyed. 35659_ Acquired 36 matter. 35659_ Xenon Bombardment Thruster destroyed. 35659_ Acquired Xenon Bombardment Thruster. 35660_ Penetrated by Slug. 35660_ P-80 Master resets P-80 Master, system corruption cleaned. 35660_ Graviton Restrictor disabled. 35663_ Acquired Xenon Bombardment Thruster. 35664_ Slug penetrates Wall. 35664_ P-80 Master resets P-80 Master, system corruption cleaned. 35665_ Xenon Bombardment Thruster destroyed. 35667_ P-80 Master resets S-43 Plague, system corruption cleaned. 35672_ K-01 Serf collects debris. 35674_ Acquired 4 matter. 35677_ Acquired 48 matter. Map ----- +----------------------------------------------------+ | ?????????????????????????????????????????????????? | | ?????????????????????????????????????????????????? | | ?????????????????????????????????????????????????? | | ?????????????????????????????????????????????????? | | ?????????????????????????????????????????????????? | | ?????????????????????????????????????????????????? | | ???????????????????????????????????????##??######? | | ???????????????????????????????????????? """"" #? | | ???????????????????????????????????????? """"" #? | | ??????????????????????????###????????????""""" #? | | ?????????????????????????? ??????????? #? | | ?????????????????????????# ???????????? #? | | ?????????????????????????# ???????????? #? | | ??????????????g??????????# ????????????? #? | | ??????????????? ????????? ????????????? ??? | | ??????????????##g###########;###############+##### | | ?????????????? | | ??????????????? g ! | | ???????????????? ! ! | | ????????????????? """ % pp "" | | ???????????????????#b """ ##""%#"### %* """ | | ???????????????????# """ ##[%=p^ ]#%= % " | | ???????????????????# %## p = " | | ?????????s???s?????+ != w[ %% # ! *% | | ?????????s?????????# %!#% %% * | | ???????????s???????# @ ## " | | ???????????????????# ;; % " = | | ???????????????????# ####;########;### | | ???????????????????# # ## | | ???????????????????# ?# ## | | ?????????????????? ??# "" """ ## | | ???????????????? ???# "" """ ## | | ??????????????? ???# """ ## """ | | ?????????????? ????# ## """ | | ?????????????###+##?????# ! ## !""" | | ??????????????h?????????################# !!F" | | ??????????????h?????????# ######## !""" | | ????????????????????????# # "" | | ????????????????????????# # | | ????????????????????????# # | | ????????????????????????# + | | ????????????????????????# # ##########+# | | ????????????????????????# # #??????????? | | ????????????????????????# # #??????????? | | ????????????????????????# ######??????????? | | ????????????????????????##########???????????????? | | ?????????????????????????????????????????????????? | | ?????????????????????????????????????????????????? | | ?????????????????????????????????????????????????? | | ?????????????????????????????????????????????????? | +----------------------------------------------------+ Best States ------------- Heat Dissipation 74 Energy Generation 47 Energy Capacity 900 Matter Stores 486 Matter Capacity 550 Sight Range 16 Robot Scan Range 16 Terrain Scan Range 20 Terrain Scan Density 10 Additional Mass Support 9 Armor Coverage 3600 Resistance: TH 15 Resistance: EX 50 Resistance: EM 15 Weapon Cycling 20 Phase Shifting 5 Evasion (%) 62 Targeting Accuracy 11 Core Analysis 6 Armor Integrity Analysis 30 Recoil Reduction 10 Particle Charging 15 Kinecelleration 30 Offensive Hacking 30 Item Schematics ----------------- Plasma Flamer | -9/Materials | Scanalyzed Med. Armor Plating | -9/Materials | Scanalyzed Imp. Heat Sink | -9/Materials | Scanalyzed Combat Drone Bay | -7/Data Miner | Free Lgt. Regenerative Plating | -7/Data Miner | Free Cld. Aerolev Unit | -7/Data Miner | Free Exp. Utility Shielding | -7/Data Miner | Free Scatter Rocket Array | -7/Data Miner | Free Arm. Medium Treads | -7/Data Miner | Free Adv. Drone Bay | -7/Data Miner | Free Disruptor Cannon | -7/Data Miner | Free Robot Schematics ------------------ M-22 Extractor | -7/Data Miner | Free S-27 Virus | -7/Data Miner | Free G-47 Trooper | -7/Data Miner | Free L-41 Fighter | -7/Data Miner | Free Fabricated ------------ Plasma Flamer | x1 | -7/Factory Combat Drone Bay | x1 | -6/Factory Adv. Drone Bay | x1 | -6/Factory Combat Drone Bay | x1 | -5/Factory Combat Drone Bay | x1 | -5/Factory Alien Tech Used ----------------- None Achievements -------------- Giant Slayer Project G-00 Prolific Hacker Turtlemind Challenges ------------ None Game ------ Seed VariableBiomechanicalCycler Manual? 0 Play Time 03:58:53 Cumulative 71.6 hours Start 2024.09.13 @ 12:08:24 End 2024.09.13 @ 16:54:51 Sessions 5 Manual Loads 0 Difficulty Rogue Special Mode None Game No. 93 Rogue 93 Adventurer 0 Explorer 0 Win Type - Total 1 Types 1/0/0/0/0/0/0/0/0 Lore% 15 Gallery% 53 Achievement% 42 Wizard Run 0 Options --------- Layout 0 ASCII 0 Keyboard 0 Movement Mouse Keybinds 1 Fullscreen 1 Font 18/TerminusBold Map View 76x50 Zoom Use 0% Tactical HUD 1 Map Filters NONE Filters NONE Steam 1 RUN: 2b6ef7dd-c89f-476e-9a03-2bfa8d683add